bitfinex-derivatives/quotes_ETHF0:USTF0_20250213
["timestamp","ask_amount","ask_price","bid_price","bid_amount"]
[1739406083570,0.5638,2736.1,2735.9,0.73098]
[1739406083775,0.5638,2736.1,2735.7,0.5693]
[1739406083983,3.2078,2736.2,2735.9,0.73097]
[1739406084282,3.2078,2736.2,2735.1,44.75468117]
[1739406084585,3.9388,2735.9,2735.1,41.3768]
[1739406084779,1.755,2735.8,2735.5,0.73107]
[1739406084983,2.2946,2735.8,2735.5,0.73107]
[1739406085289,2.2946,2735.8,2735.1,41.3768]
[1739406085775,2.2946,2735.8,2735.5,0.73107]
[1739406086683,3.2078,2735.9,2735.8,0.73101]
[1739406086978,3.2078,2735.9,2735.4,3.95468117]
[1739406087181,3.2078,2735.9,2735.7,0.73103]
[1739406087573,3.2078,2735.9,2735.4,3.95468117]
[1739406087574,3.2078,2735.9,2735.8,0.73101]
[1739406087769,3.2078,2735.9,2735.4,3.95468117]
[1739406087973,3.2078,2735.9,2735.1,5.07418117]
[1739406088177,3.2078,2735.6,2735.1,1.1195]
[1739406088384,5.69388,2735.6,2735.1,1.85069]
[1739406088584,4.9628,2735.6,2735.0,3.2078]
[1739406088778,4.9628,2735.6,2735.3,0.73114]
[1739406089483,0.73109,2735.5,2735.1,0.73119]
[1739406089685,4.9628,2735.6,2735.0,3.2078]
[1739406089880,5.69387,2735.6,2735.2,0.73116]
[1739406090072,4.9628,2735.6,2735.3,0.73112]
[1739406090476,4.9628,2735.6,2734.8,3.95468117]
[1739406090680,0.73109,2735.5,2735.1,0.73118]
[1739406090883,5.69388,2735.6,2735.2,0.73117]
[1739406091074,5.69388,2735.6,2734.7,44.5966]
[1739406091075,4.9628,2735.6,2734.8,3.95468117]
[1739406091279,4.9628,2735.6,2735.4,0.73111]
[1739406091874,4.9628,2735.6,2735.5,0.73109]
[1739406092080,3.2078,2735.6,2735.5,0.73109]
[1739406092282,4.9618,2735.6,2735.5,0.73109]
[1739406092683,1.754,2735.6,2735.5,0.73109]
[1739406092880,0.5942,2735.8,2735.3,3.2078]
[1739406093078,1.754,2735.8,2735.7,0.73104]
[1739406093994,1.754,2735.8,2735.7,41.53104]
[1739406094288,1.754,2735.8,2735.7,40.8]
[1739406094489,2.48501,2735.8,2735.7,40.8]
[1739406094686,2.48501,2735.8,2735.5,0.73108]
[1739406095092,1.754,2735.8,2735.5,0.73108]
[1739406095387,1.754,2735.8,2735.7,0.73104]
[1739406095778,1.754,2735.8,2735.4,0.5837]
[1739406095979,1.754,2735.8,2735.2,0.5644]
[1739406096182,1.754,2735.8,2735.0,2.25277856]
[1739406096183,3.2078,2735.6,2735.0,2.25277856]
[1739406096493,3.2078,2735.6,2734.9,3.7827]
[1739406096494,3.2078,2735.6,2735.2,0.73116]
[1739406096685,3.2078,2735.6,2734.9,3.7827]
[1739406096885,0.73109,2735.5,2734.9,3.7827]
[1739406097389,0.5392,2735.4,2735.3,0.73114]
[1739406097584,0.5392,2735.4,2734.9,3.7827]
[1739406097781,1.754,2735.3,2734.9,0.5749]
[1739406097990,4.9618,2735.3,2735.1,0.73118]
[1739406098287,4.9618,2735.3,2735.0,40.8]
[1739406098490,4.9618,2735.3,2735.0,41.53121]
[1739406098791,5.69294,2735.3,2735.0,41.53121]
[1739406099089,4.9618,2735.3,2735.0,41.53121]
[1739406099290,4.9618,2735.3,2735.1,0.73118]
[1739406099483,4.9618,2735.3,2735.0,41.5312]
[1739406099690,4.9618,2735.3,2735.0,40.8]
[1739406099991,0.7312,2735.1,2735.0,40.8]
[1739406100585,1.02201389,2735.1,2735.0,40.8]
[1739406100790,0.73128,2734.8,2734.6,0.00548958]
[1739406100989,1.754,2734.8,2734.6,0.00548958]
[1739406101185,1.754,2734.8,2734.7,40.8]
[1739406101491,3.06538,2734.8,2734.7,40.8]
[1739406101886,0.7313,2734.7,2734.6,0.00548958]
[1739406102282,9.95468117,2734.7,2733.1,3.2078]
[1739406102482,3.2078,2733.9,2733.1,3.2078]
[1739406102790,1.754,2733.8,2733.6,0.73159]
[1739406102989,1.754,2733.8,2733.2,40.8]
[1739406103291,1.754,2733.8,2733.2,40.80548958]
[1739406103592,1.75948958,2733.8,2733.6,0.73158]
[1739406103791,1.75948958,2733.8,2733.7,0.73157]
[1739406104287,1.75948958,2733.8,2733.2,40.80548958]
[1739406105089,1.75948958,2733.8,2733.7,0.73157]
[1739406105494,0.00548958,2733.8,2733.7,0.73157]
[1739406105694,1.75948958,2733.8,2733.7,0.73157]
[1739406105885,0.00548958,2733.8,2733.7,0.73157]
[1739406106195,0.00548958,2733.8,2733.7,3.93937]
[1739406106384,3.2078,2734.3,2733.7,3.93937]
[1739406106789,3.2078,2734.3,2734.1,0.73144]
[1739406107189,3.2078,2734.3,2733.7,3.93937]
[1739406107388,1.754,2734.6,2733.7,3.93937]
[1739406107590,1.754,2734.6,2734.3,0.73139]
[1739406107802,1.754,2734.6,2734.4,40.8]
[1739406107995,3.95468117,2734.5,2734.4,40.8]
[1739406108190,0.73138,2734.4,2734.0,0.73148]
[1739406108396,3.2078,2734.1,2733.9,0.7315]
[1739406108694,1.754,2734.0,2733.6,0.5773]
[1739406108894,1.754,2734.0,2733.6,1.30888]
[1739406109101,2.3319,2734.0,2733.6,0.5773]
[1739406109289,2.3319,2734.0,2733.9,0.73152]
[1739406109693,2.3319,2734.0,2733.6,0.5773]
[1739406110198,2.3319,2734.0,2733.9,0.73152]
[1739406110398,2.3319,2734.0,2733.8,0.73153]
[1739406110993,2.3319,2734.0,2733.9,0.73152]
[1739406111401,2.3319,2734.0,2733.6,0.5773]
[1739406111900,2.3319,2734.0,2733.7,0.73155]
[1739406112192,0.73154,2733.9,2733.5,0.5398]
[1739406112393,3.2078,2733.8,2733.4,40.8]
[1739406112598,3.93943,2733.5,2733.4,40.8]
[1739406112799,4.9618,2733.5,2733.2,0.00548958]
[1739406113098,0.73166,2733.4,2733.2,0.00548958]
[1739406113302,0.592,2733.4,2733.2,41.53717958]
[1739406113994,0.592,2733.4,2733.2,40.80548958]
[1739406114203,0.592,2733.4,2733.3,0.73168]
[1739406114204,1.754,2733.4,2733.3,0.73168]
[1739406114394,1.754,2733.4,2733.3,1.28628]
[1739406116089,1.754,2733.4,2733.2,40.80548958]
[1739406116295,2.48567,2733.4,2733.2,40.80548958]
[1739406116497,0.73168,2733.3,2733.2,40.80548958]
[1739406116695,1.29318,2733.3,2733.2,40.80548958]
[1739406117104,0.5615,2733.3,2733.2,40.80548958]
[1739406117595,0.5615,2733.3,2733.2,41.53719958]
[1739406119900,3.2078,2733.5,2733.2,40.80548958]
[1739406120106,3.2078,2733.5,2733.4,0.73165]
[1739406120307,4.9618,2733.5,2733.2,40.80548958]
[1739406120608,5.69343,2733.5,2733.2,41.53717958]
[1739406120809,4.9618,2733.5,2733.2,40.80548958]
[1739406121002,4.9618,2733.5,2733.3,0.73166]
[1739406121400,4.9618,2733.5,2733.4,0.73165]
[1739406122607,4.9618,2733.5,2733.2,40.80548958]
[1739406122812,4.9618,2733.5,2733.4,0.73165]
[1739406123502,4.9618,2733.5,2733.2,40.80548958]
[1739406123705,5.69343,2733.5,2733.2,41.53717958]
[1739406124011,0.73166,2733.4,2733.2,0.00548958]
[1739406124505,0.5737,2733.3,2733.2,0.00548958]
[1739406125704,0.5737,2733.3,2733.2,0.73719958]
[1739406125907,0.5737,2733.3,2733.2,0.00548958]
[1739406126208,1.30538,2733.3,2733.2,0.00548958]
[1739406127203,11.26006117,2733.3,2733.2,0.00548958]
[1739406127402,10.52838117,2733.3,2732.2,1.1078]
[1739406127596,3.2078,2732.5,2731.8,0.5745]
[1739406127804,3.2078,2731.9,2731.8,1.1219]
[1739406128007,3.2078,2731.9,2731.8,0.5474]
[1739406128304,3.2078,2731.9,2731.8,42.07948]
[1739406129008,3.2078,2731.9,2731.8,41.3474]
[1739406129210,4.9618,2731.9,2731.8,40.8]
[1739406129410,5.69385,2731.9,2731.8,40.8]
[1739406129801,4.9618,2731.9,2731.8,40.8]
[1739406130012,0.7321,2731.8,2731.6,0.00548958]
[1739406130206,0.5954,2731.8,2731.6,0.00548958]
[1739406130414,1.3275,2731.8,2731.6,0.00548958]
[1739406131117,0.5954,2731.8,2731.6,0.00548958]
[1739406133409,0.5954,2731.8,2731.6,0.73760958]
[1739406133609,1.754,2731.7,2731.6,0.00548958]
[1739406134410,1.754,2731.7,2731.6,0.73761958]
[1739406135314,0.5954,2731.8,2731.6,0.73761958]
[1739406135513,3.2078,2731.9,2731.7,0.73209]
[1739406135710,1.754,2731.7,2731.6,0.73760958]
[1739406136113,1.754,2731.7,2731.6,0.00548958]
[1739406136616,2.48612,2731.7,2731.3,0.7322]
[1739406136817,3.2078,2731.5,2731.3,0.7322]
[1739406137517,3.2078,2731.5,2731.4,0.73219]
[1739406137711,3.2078,2731.5,2731.1,0.00548958]
[1739406137908,3.2078,2731.5,2731.4,0.73219]
[1739406138621,3.2078,2731.5,2731.3,0.7322]
[1739406138821,3.2078,2731.5,2731.1,0.00548958]
[1739406139019,3.2078,2731.5,2731.2,0.73222]
[1739406139223,3.2078,2731.5,2731.1,0.00548958]
[1739406139421,3.93998,2731.5,2731.2,0.73224]
[1739406139614,3.2078,2731.5,2731.2,0.73224]
[1739406139916,3.2078,2731.5,2731.1,0.00548958]
[1739406140123,3.2078,2731.5,2731.4,0.73219]
[1739406140323,3.2078,2731.5,2731.1,0.00548958]
[1739406140622,3.2078,2731.5,2731.3,0.7322]
[1739406140822,3.2078,2731.5,2731.1,0.00548958]
[1739406141027,3.2078,2731.5,2731.4,0.73219]
[1739406141217,4.9618,2731.5,2731.4,0.73219]
[1739406142019,3.2078,2731.5,2731.4,0.73219]
[1739406144128,1.754,2731.6,2731.5,0.73216]
[1739406147529,4.9618,2731.8,2731.7,0.73211]
[1739406150332,3.21328958,2732.1,2732.0,0.73203]
[1739406150531,4.96628958,2732.1,2732.0,0.73203]
[1739406151423,0.00548958,2732.1,2732.0,0.73203]
[1739406151831,3.2078,2732.4,2732.3,0.73195]
[1739406152025,1.753,2732.6,2732.5,0.73189]
[1739406152226,19.171,2732.9,2732.5,0.73189]
[1739406152426,19.171,2732.9,2732.8,0.73181]
[1739406152936,22.3788,2732.9,2732.7,0.73182]
[1739406153232,23.11059,2732.9,2732.7,0.73182]
[1739406153433,22.3788,2732.9,2732.7,0.73182]
[1739406153631,0.3667,2732.8,2732.7,0.73182]
[1739406153832,0.3667,2732.8,2732.6,0.00548958]
[1739406154031,1.09853,2732.8,2732.6,0.00548958]
[1739406154228,0.9163,2732.7,2732.6,0.00548958]
[1739406154632,1.64814,2732.7,2732.6,0.00548958]
[1739406155033,2.20804,2732.7,2732.6,0.00548958]
[1739406155232,2.0086404,2732.7,2731.9,0.73204]
[1739406155432,3.2078,2732.0,2731.8,0.565]
[1739406155633,4.9608,2732.0,2731.8,0.565]
[1739406155838,4.9608,2732.0,2731.6,1.1275]
[1739406155839,4.9608,2732.0,2731.5,0.73214]
[1739406156027,3.2078,2731.6,2731.1,1.6925]
[1739406156433,3.21328958,2731.6,2731.3,0.73221]
[1739406156633,1.753,2731.5,2731.4,0.73218]
[1739406156934,1.753,2731.5,2731.2,40.8]
[1739406157138,1.753,2731.5,2731.4,0.73219]
[1739406158738,1.753,2731.5,2731.2,40.8]
[1739406158942,1.753,2731.5,2731.3,0.73221]
[1739406159342,2.28654535,2731.5,2731.3,0.73221]
[1739406160029,2.28654535,2731.5,2731.2,40.8]
[1739406160542,2.28654535,2731.5,2731.3,0.7322]
[1739406161228,2.28654535,2731.5,2731.2,40.8]
[1739406161229,2.28654535,2731.5,2731.4,0.73219]
[1739406161434,2.28654535,2731.5,2731.3,0.7322]
[1739406161734,2.28654535,2731.5,2731.4,0.73219]
[1739406162033,2.28654535,2731.5,2731.3,0.7322]
[1739406162740,2.28654535,2731.5,2731.3,0.73221]
[1739406163536,2.28654535,2731.5,2731.2,40.8]
[1739406163537,2.28654535,2731.5,2731.4,0.73219]
[1739406164038,2.28654535,2731.5,2731.2,40.8]
[1739406164241,2.28654535,2731.5,2731.3,0.7322]
[1739406164442,2.28654535,2731.5,2731.2,40.8]
[1739406164644,2.28654535,2731.5,2731.4,0.73219]
[1739406165245,2.28654535,2731.5,2731.3,0.73221]
[1739406165434,2.28654535,2731.5,2731.4,0.73219]
[1739406165639,2.28654535,2731.5,2731.3,0.7322]
[1739406166040,2.28654535,2731.5,2731.4,0.73219]
[1739406167548,2.28654535,2731.5,2731.3,0.73221]
[1739406167852,2.88144535,2731.5,2731.2,40.8]
[1739406168048,3.61361535,2731.5,2731.2,41.53223]
[1739406168550,2.88144535,2731.5,2731.2,41.53223]
[1739406168746,3.61361535,2731.5,2731.2,40.8]
[1739406169047,2.88144535,2731.5,2731.2,41.53223]
[1739406169240,3.44914535,2731.5,2731.2,41.53223]
[1739406169443,3.44914535,2731.5,2731.2,40.8]
[1739406169643,3.44914535,2731.5,2731.2,41.53222]
[1739406169951,3.2078,2731.3,2731.2,41.53222]
[1739406172053,3.2078,2731.3,2731.2,0.73222]
[1739406179848,3.2078,2731.3,2731.1,0.57048958]
[1739406180043,0.73224,2731.2,2731.1,0.00548958]
[1739406180252,3.94003,2731.3,2731.1,0.00548958]
[1739406180449,3.16544704,2731.2,2730.7,0.5836]
[1739406180654,7.10557704,2730.9,2730.5,0.73241]
[1739406180852,2.8356344,2730.8,2730.5,0.73241]
[1739406181151,0.5336344,2730.8,2730.3,4.37575883]
[1739406181454,0.5336344,2730.8,2730.7,0.73238]
[1739406181649,2.2856344,2731.1,2730.4,1.83115]
[1739406181858,2.2856344,2731.1,2731.0,0.7323]
[1739406183152,0.5336344,2731.1,2731.0,0.7323]
[1739406183457,1.752,2731.1,2731.0,0.7323]
[1739406183852,1.752,2731.1,2730.9,0.7323]
[1739406184058,2.2856344,2731.1,2730.5,3.16544704]
[1739406184350,2.2856344,2731.1,2731.0,0.7323]
[1739406186149,0.5336344,2731.1,2731.0,0.7323]
[1739406186354,4.9598,2731.2,2730.9,0.5368]
[1739406186557,3.2078,2731.2,2731.1,0.73227]
[1739406186759,2.24326,2731.9,2731.1,0.73227]
[1739406186760,0.3667,2732.6,2731.2,3.66115]
[1739406187059,0.3667,2732.6,2732.5,0.73189]
[1739406187458,3.2078,2733.4,2732.4,6.37324704]
[1739406187654,1.752,2733.3,2732.8,3.16544704]
[1739406187958,2.12418958,2733.3,2733.2,0.36461]
[1739406188151,0.37218958,2733.3,2733.1,3.16544704]
[1739406188351,0.37218958,2733.3,2733.2,0.36461]
[1739406189050,0.37218958,2733.3,2733.0,3.2078]
[1739406189256,0.37218958,2733.3,2733.2,0.73171]
[1739406189457,0.37218958,2733.3,2733.1,0.73172]
[1739406189657,0.37218958,2733.3,2733.1,0.73173]
[1739406189850,0.37218958,2733.3,2732.8,0.00548958]
[1739406190054,0.5904,2733.2,2732.8,0.73727958]
[1739406190460,0.5904,2733.2,2732.8,0.00548958]
[1739406191155,0.5904,2733.2,2732.9,0.73178]
[1739406191359,0.5904,2733.2,2732.8,0.73728958]
[1739406191555,0.5904,2733.2,2732.8,0.00548958]
[1739406191755,0.5904,2733.2,2732.8,0.73728958]
[1739406191955,0.5904,2733.2,2732.8,0.00548958]
[1739406192155,0.5904,2733.2,2732.9,0.73177]
[1739406193260,0.5904,2733.2,2732.8,0.73728958]
[1739406193661,0.5904,2733.2,2732.9,0.73178]
[1739406193862,0.5904,2733.2,2732.8,0.73727958]
[1739406194057,0.5904,2733.2,2732.8,0.73728958]
[1739406194461,0.5904,2733.2,2732.8,0.00548958]
[1739406194651,0.73179,2732.9,2732.8,0.00548958]
[1739406194855,1.751,2732.9,2731.9,3.96096368]
[1739406195058,3.2078,2732.4,2731.9,3.96096368]
[1739406195259,1.75,2732.3,2732.0,0.73201]
[1739406195460,1.75,2732.3,2731.9,0.73204]
[1739406195663,3.02966,2732.3,2731.8,0.73207]
[1739406195957,2.2977,2732.3,2731.8,0.00548958]
[1739406196261,3.93982,2732.1,2731.8,0.00548958]
[1739406196463,0.5706,2732.0,2731.8,0.00548958]
[1739406197167,0.73205,2731.9,2731.8,0.00548958]
[1739406197565,1.09119569,2732.0,2731.8,0.00548958]
[1739406197760,0.5706,2732.0,2731.8,0.00548958]
[1739406197965,0.73205,2731.9,2731.8,0.00548958]
[1739406198162,6.5706,2732.0,2731.3,40.8]
[1739406198461,3.2078,2731.7,2730.7,3.96096368]
[1739406198662,3.2078,2731.4,2730.6,3.2078]
[1739406198861,0.5786,2731.3,2730.7,40.8]
[1739406199063,0.5786,2731.3,2731.0,0.73229]
[1739406199259,0.5786,2731.3,2730.7,40.8]
[1739406199459,0.5786,2731.3,2731.0,0.73227]
[1739406199863,0.5786,2731.3,2730.9,0.00548958]
[1739406200062,0.5786,2731.3,2731.0,0.73228]
[1739406200260,0.5786,2731.3,2730.9,0.00548958]
[1739406200462,0.5786,2731.3,2731.1,0.73226]
[1739406201567,0.5786,2731.3,2730.9,0.00548958]
[1739406201766,0.5786,2731.3,2731.0,0.73228]
[1739406202664,0.5786,2731.3,2731.1,0.73226]
[1739406202866,0.5786,2731.3,2730.9,0.73779958]
[1739406203171,3.2078,2731.1,2730.9,0.73778958]
[1739406203464,1.75,2731.0,2730.9,0.73778958]
[1739406206768,1.75,2731.0,2730.9,0.00548958]
[1739406207169,1.75,2731.0,2730.9,0.73780958]
[1739406207875,1.75,2731.0,2730.9,0.00548958]
[1739406208076,1.75,2731.0,2730.9,0.73780958]
[1739406208678,3.2078,2731.1,2731.0,0.7323]
[1739406208871,4.9578,2731.1,2731.0,0.7323]
[1739406211772,4.9578,2731.1,2730.9,0.00548958]
[1739406211972,5.69007,2731.1,2730.9,0.00548958]
[1739406212173,4.9578,2731.1,2730.9,0.00548958]
[1739406212370,4.9578,2731.1,2730.9,0.73779958]
[1739406212778,4.54665326,2731.4,2731.3,0.73221]
[1739406212779,3.21328958,2731.4,2731.3,0.73221]
[1739406212980,1.75548958,2731.4,2731.3,0.73221]
[1739406213478,3.5745,2731.9,2731.3,4.69317368]
[1739406213685,3.2078,2731.9,2731.8,0.73208]
[1739406214377,1.75,2732.0,2731.9,0.73205]
[1739406214572,1.75,2732.0,2731.4,41.3947]
[1739406214886,1.75,2732.0,2731.4,40.8]
[1739406215182,3.2078,2731.9,2731.6,0.73212]
[1739406215484,3.7512,2731.9,2731.7,0.73209]
[1739406216076,3.7512,2731.9,2731.3,0.5666]
[1739406216273,3.7512,2731.9,2731.8,0.73208]
[1739406216479,3.7512,2731.9,2731.3,0.5666]
[1739406216673,3.7512,2731.9,2731.5,0.73214]
[1739406216873,3.7512,2731.9,2731.3,0.5666]
[1739406216874,0.73209,2731.8,2731.3,0.73219]
[1739406217076,3.2078,2731.5,2731.0,0.5468]
[1739406217382,2.3309,2731.4,2731.0,0.73228]
[1739406217774,2.3309,2731.4,2731.0,0.73227]
[1739406217980,0.73223,2731.3,2730.9,0.00548958]
[1739406218391,3.2078,2731.1,2730.9,0.73779958]
[1739406220078,3.2078,2731.1,2730.9,0.00548958]
[1739406220486,1.25321091,2731.3,2730.9,0.00548958]
[1739406220678,1.25321091,2731.3,2730.9,0.73780958]
[1739406220882,0.7323,2731.0,2730.9,0.00548958]
[1739406221587,1.02344121,2731.0,2730.9,0.00548958]
[1739406222989,0.73237,2730.8,2730.3,0.73248]
[1739406223189,3.2078,2730.6,2730.1,40.8]
[1739406223483,3.2078,2730.3,2729.7,3.2078]
[1739406223682,2.2901,2730.7,2729.2,3.2078]
[1739406223683,3.2078,2729.9,2729.2,3.2078]
[1739406223888,20.936,2730.2,2729.2,40.8]
[1739406223889,3.2078,2729.3,2729.2,40.8]
[1739406224088,1.75,2729.3,2729.2,40.8]
[1739406224291,4.9578,2729.3,2729.2,40.8]
[1739406224588,5.69055,2729.3,2729.2,40.8]
[1739406224790,4.9578,2729.3,2729.0,0.00548958]
[1739406225487,3.96096368,2729.1,2728.2,40.8]
[1739406225692,3.2078,2728.6,2728.2,40.8]
[1739406225888,4.9578,2728.5,2728.2,40.8]
[1739406226091,1.75,2728.5,2728.2,40.8]
[1739406227393,1.75,2728.4,2728.3,0.73302]
[1739406227893,3.2078,2728.8,2728.4,0.73299]
[1739406228082,1.75,2728.7,2728.4,0.73299]
[1739406228484,1.75,2728.7,2728.3,0.73301]
[1739406228693,3.2078,2728.8,2728.2,40.8]
[1739406228892,1.75,2728.7,2728.4,3.2078]
[1739406229093,1.75,2728.7,2728.4,3.94078]
[1739406229891,1.75,2728.7,2728.4,3.2078]
[1739406230087,1.75,2728.7,2728.5,0.73297]
[1739406230489,1.75,2728.7,2728.4,3.94077]
[1739406230792,1.75,2728.7,2728.2,40.8]
[1739406230989,0.73297,2728.5,2728.2,40.8]
[1739406231188,0.73301,2728.4,2728.2,40.8]
[1739406231487,3.2078,2728.5,2728.2,40.8]
[1739406231488,0.73298,2728.5,2728.2,40.8]
[1739406231688,1.75,2728.7,2728.2,40.8]
[1739406231885,1.75,2728.7,2728.3,0.73301]
[1739406232285,1.75,2728.7,2728.2,41.53303]
[1739406232286,2.48291,2728.7,2728.2,41.53303]
[1739406232694,0.73299,2728.4,2728.2,40.8]
[1739406232995,0.73299,2728.4,2728.1,0.00548958]
[1739406232996,0.73305,2728.3,2728.1,0.00548958]
[1739406233195,1.75,2728.2,2728.1,0.00548958]
[1739406233688,4.9578,2728.2,2728.1,0.00548958]
[1739406234493,4.9578,2728.2,2728.1,0.73855958]
[1739406234700,4.9578,2728.2,2728.1,0.00548958]
[1739406235088,1.75,2728.2,2728.1,0.00548958]
[1739406235295,1.75,2728.2,2728.1,0.73855958]
[1739406235791,0.00548958,2728.4,2728.1,0.00548958]
[1739406235993,1.75,2728.3,2728.1,0.00548958]
[1739406236594,1.75,2728.3,2728.2,0.73305]
[1739406237197,1.75,2728.3,2728.1,0.73854958]
[1739406237396,1.75,2728.2,2728.1,0.00548958]
[1739406237599,1.75,2728.2,2728.1,0.73855958]
[1739406239292,1.75,2728.2,2728.1,0.00548958]
[1739406239891,2.48305,2728.2,2728.1,0.00548958]
[1739406240299,1.75,2728.2,2728.1,0.00548958]
[1739406240693,1.75,2728.2,2728.1,0.73855958]
[1739406241990,2.48305,2728.2,2728.1,0.00548958]
[1739406242191,1.75,2728.2,2728.1,0.00548958]
[1739406242401,2.48305,2728.2,2728.1,0.00548958]
[1739406243000,2.48305,2728.2,2727.2,7.75256368]
[1739406243001,1.75,2728.2,2727.2,7.75256368]
[1739406243201,0.7332,2727.7,2727.3,0.73327]
[1739406243399,2.48319,2727.7,2727.5,40.8]
[1739406243899,1.75,2727.7,2727.5,40.8]
[1739406244298,2.48319,2727.7,2727.5,40.8]
[1739406244699,1.75,2727.7,2727.5,40.8]
[1739406244902,3.7651,2728.1,2727.3,0.00365972]
[1739406245100,1.75,2728.0,2727.8,0.73315]
[1739406245603,1.75,2728.0,2727.4,44.0078]
[1739406245807,1.75,2728.0,2727.4,3.2078]
[1739406245808,3.2078,2727.8,2727.4,3.2078]
[1739406246007,3.2078,2727.8,2727.4,3.94104]
[1739406246509,0.73319,2727.7,2727.3,0.00365972]
[1739406247009,3.2078,2727.8,2727.3,0.00365972]
[1739406247203,0.73319,2727.7,2727.3,0.00365972]
[1739406247410,0.7332,2727.7,2727.3,0.73694972]
[1739406247615,0.7332,2727.7,2727.3,0.00365972]
[1739406247802,0.29965809,2727.7,2727.4,0.73326]
[1739406248002,0.73317,2727.8,2727.4,0.73326]
[1739406248208,3.2078,2727.7,2727.4,0.73326]
[1739406248511,3.2078,2727.7,2727.4,0.73325]
[1739406248909,3.50737024,2727.7,2727.4,0.73325]
[1739406249409,3.2078,2727.7,2727.4,0.73325]
[1739406249810,0.73322,2727.6,2727.3,0.00365972]
[1739406250018,2.48425,2727.5,2727.3,0.00365972]
[1739406250208,1.74818915,2727.5,2727.3,0.00365972]
[1739406250400,0.73326,2727.4,2727.3,0.00365972]
[1739406250605,3.07483915,2727.5,2727.3,0.00365972]
[1739406251309,2.34158915,2727.5,2727.3,0.00365972]
[1739406251912,0.73326,2727.4,2727.3,0.00365972]
[1739406252300,3.07483915,2727.5,2727.3,0.00365972]
[1739406252912,0.5934,2727.5,2727.3,0.00365972]
[1739406253208,1.751,2727.4,2727.3,0.73694972]
[1739406254109,1.751,2727.4,2727.3,0.00365972]
[1739406256008,1.751,2727.4,2727.3,0.73694972]
[1739406256201,1.751,2727.4,2727.3,0.00365972]
[1739406256914,1.751,2727.4,2727.3,0.73694972]
[1739406258706,1.751,2727.4,2727.3,0.00365972]
[1739406258903,1.751,2727.4,2727.3,0.73694972]
[1739406259108,1.751,2727.4,2727.3,0.00365972]
[1739406259506,1.751,2727.4,2727.3,0.73694972]
[1739406259713,1.751,2727.4,2727.3,0.00365972]
[1739406259911,1.751,2727.4,2727.3,0.73694972]
[1739406262315,1.751,2727.4,2727.3,0.00365972]
[1739406262816,1.751,2727.4,2727.3,0.73694972]
[1739406263009,1.751,2727.4,2727.3,0.00365972]
[1739406263405,2.48426,2727.4,2727.3,0.00365972]
[1739406263914,2.48426,2727.4,2726.8,40.8]
[1739406263915,2.27291291,2727.4,2726.8,40.8]
[1739406264118,6.38253557,2727.2,2726.4,3.2078]
[1739406264320,0.73339,2727.0,2726.6,0.73346]
[1739406264509,3.2078,2726.8,2726.1,3.2078]
[1739406264706,1.081,2726.7,2726.0,0.5931]
[1739406265027,4.9578,2726.9,2726.6,0.73347]
[1739406265514,0.52173317,2726.8,2726.3,3.2078]
[1739406265810,0.52173317,2726.8,2726.1,40.8]
[1739406266011,3.2078,2726.5,2725.9,0.16033616]
[1739406266212,2.287,2726.4,2725.9,0.16033616]
[1739406266415,3.17473557,2726.0,2725.9,0.16033616]
[1739406266714,3.17473557,2726.0,2725.4,0.73379]
[1739406266912,2.3357,2725.9,2725.4,0.73379]
[1739406267213,6.38253557,2725.7,2725.2,40.8]
[1739406267419,6.38253557,2725.7,2725.2,41.53385]
[1739406267609,7.11626557,2725.7,2725.1,3.94166]
[1739406267807,7.70126557,2725.7,2725.1,3.2078]
[1739406268311,3.2078,2725.2,2724.4,3.2078]
[1739406268507,1.75,2725.1,2724.4,3.2078]
[1739406268717,1.75549974,2725.1,2724.4,44.0078]
[1739406269213,3.18023531,2725.1,2724.4,44.0078]
[1739406269513,1.75,2725.0,2724.4,47.18253557]
[1739406269718,1.75,2725.0,2724.7,3.2078]
[1739406270018,3.2078,2724.8,2724.1,3.94195]
[1739406270221,3.94178,2724.8,2724.1,3.2078]
[1739406270512,3.2078,2724.8,2724.2,40.8]
[1739406270909,3.2078,2724.5,2723.8,4.3364]
[1739406271110,3.2078,2724.5,2723.8,3.7919]
[1739406271111,2.48509,2724.4,2723.8,3.7919]
[1739406271313,1.751,2724.4,2723.9,40.8]
[1739406271721,3.98551055,2724.3,2723.9,40.8]
[1739406271910,3.2078,2724.2,2723.5,3.2078]
[1739406272215,3.94193,2724.2,2723.5,3.9421]
[1739406272421,0.5439,2724.1,2723.5,3.2078]
[1739406272628,0.5439,2724.1,2723.5,0.73429]
[1739406272815,3.2078,2723.9,2723.4,1.31843]
[1739406273014,1.751,2723.8,2723.4,0.5841]
[1739406273213,1.751,2723.8,2723.5,0.7343]
[1739406273517,0.73437,2723.3,2722.9,3.2078]
[1739406273714,0.73437,2723.3,2722.1,0.00830783]
[1739406273715,3.2078,2723.0,2722.1,0.00830783]
[1739406273914,0.29683023,2723.9,2722.0,0.01022995]
[1739406273915,7.19331055,2722.5,2722.0,0.01022995]
[1739406274216,0.00549974,2722.8,2722.4,3.2078]
[1739406274525,0.00549974,2722.8,2722.7,3.94233]
[1739406274820,1.751,2723.6,2723.3,0.73435]
[1739406275017,1.751,2723.6,2723.5,3.2078]
[1739406275212,1.751,2723.6,2723.1,3.2078]
[1739406275413,1.751,2723.9,2723.5,3.2078]
[1739406275919,19.23,2724.1,2723.8,3.2078]
[1739406275920,0.00551015,2724.0,2723.8,3.2078]
[1739406276315,0.73969015,2724.0,2723.8,3.2078]
[1739406276512,0.00551015,2724.0,2723.8,3.2078]